bitfinex/quotes_SOLUSD_20250522
["timestamp","ask_amount","ask_price","bid_price","bid_amount"]
[1747900820214,13.92464821,178.7,178.61,13.92464821]
[1747900820372,47.55776868,178.73,178.62,18.79181043]
[1747900820571,13.92464821,178.71,178.66,0.14216157]
[1747900820774,13.92464821,178.7,178.66,0.14216157]
[1747900821087,5.59659726,178.68,178.66,18.79181043]
[1747900821269,5.59659726,178.68,178.67,0.14216157]
[1747900821673,5.59506662,178.73,178.69,0.14216157]
[1747900822000,13.92464821,178.72,178.68,18.79181043]
[1747900822182,13.92464821,178.71,178.68,18.79181043]
[1747900822585,13.92464821,178.72,178.68,18.79181043]
[1747900822891,19.58264564,178.73,178.68,32.71645864]
[1747900823088,13.92464821,178.72,178.68,18.79181043]
[1747900823297,19.58264564,178.73,178.68,32.71645864]
[1747900823477,19.58264564,178.73,178.71,18.64964886]
[1747900824101,5.59506662,178.73,178.72,0.14216157]
[1747900824273,0.33247321,178.74,178.73,44.79181043]
[1747900824474,5.92719179,178.74,178.73,58.71645864]
[1747900826303,0.33247321,178.74,178.73,58.71645864]
[1747900826875,0.19037321,178.74,178.73,64.31149025]
[1747900827081,0.19037321,178.74,178.73,58.71645864]
[1747900827699,0.19037321,178.74,178.73,64.31149025]
[1747900828885,0.19037321,178.74,178.73,64.87066867]
[1747900829084,0.19037321,178.74,178.73,59.27563706]
[1747900829290,0.19037321,178.74,178.73,58.71645864]
[1747900829503,0.19037321,178.74,178.73,130.39645864]
[1747900830000,0.19037321,178.74,178.73,135.99149025]
[1747900830298,0.19037321,178.74,178.73,130.39645864]
[1747900831023,0.19037321,178.74,178.73,116.47181043]
[1747900831204,0.19037321,178.74,178.73,135.99149025]
[1747900831506,0.19037321,178.74,178.73,130.39645864]
[1747900831676,0.04827321,178.74,178.73,130.39645864]
[1747900832080,0.04827321,178.74,178.73,66.27645864]
[1747900832499,5.64299179,178.74,178.73,44.79181043]
[1747900832677,5.64299179,178.74,178.73,0.14216157]
[1747900832880,5.64299179,178.74,178.73,18.79181043]
[1747900833081,0.04827321,178.74,178.73,58.71645864]
[1747900833491,0.04827321,178.74,178.73,32.71645864]
[1747900835195,0.04827321,178.74,178.73,38.31149025]
[1747900835595,0.3,178.82,178.81,18.79181043]
[1747900835904,0.3,178.82,178.81,104.83645864]
[1747900836110,5.89221563,178.82,178.81,18.79181043]
[1747900836611,33.79740292,178.82,178.78,18.79181043]
[1747900836819,13.92464821,178.81,178.78,0.14216157]
[1747900837118,13.92464821,178.8,178.78,0.14216157]
[1747900837320,19.51780218,178.79,178.76,18.64964886]
[1747900837495,13.92464821,178.78,178.77,0.14216157]
[1747900837705,5.59315397,178.79,178.77,0.14216157]
[1747900838010,19.51780218,178.79,178.77,0.14216157]
[1747900838198,19.51780218,178.79,178.76,18.64964886]
[1747900838199,33.50068712,178.79,178.76,0.14216157]
[1747900838601,13.92464821,178.77,178.76,0.14216157]
[1747900838796,13.92464821,178.78,178.76,0.14216157]
[1747900838997,33.50068712,178.79,178.76,0.14216157]
[1747900839591,33.50068712,178.79,178.73,33.56]
[1747900839592,13.92464821,178.77,178.73,33.56]
[1747900839794,13.92464821,178.75,178.72,18.79181043]
[1747900839990,13.92464821,178.75,178.7,18.79181043]
[1747900840303,13.92464821,178.77,178.72,18.79181043]
[1747900840541,5.59315397,178.79,178.76,32.71645864]
[1747900840695,5.59315397,178.79,178.78,44.64964886]
[1747900841511,5.59252838,178.81,178.79,0.14216157]
[1747900843526,19.51717659,178.81,178.79,0.14216157]
[1747900843727,5.59252838,178.81,178.79,0.14216157]
[1747900848001,19.51717659,178.81,178.79,0.14216157]
[1747900848403,13.92464821,178.8,178.76,18.64964886]
[1747900848707,13.92464821,178.8,178.77,0.14216157]
[1747900848902,13.92464821,178.78,178.76,0.14216157]
[1747900849107,19.57384933,178.81,178.74,0.14216157]
[1747900849108,13.92464821,178.77,178.74,0.14216157]
[1747900849325,13.92464821,178.75,178.7,33.54]
[1747900849512,13.92464821,178.75,178.71,18.79181043]
[1747900850341,13.92464821,178.73,178.71,0.14216157]
[1747900850829,109.90693315,178.81,178.71,0.14216157]
[1747900851014,109.90693315,178.81,178.68,44.79181043]
[1747900851015,13.92464821,178.72,178.68,44.79181043]
[1747900851214,13.92464821,178.71,178.68,44.79181043]
[1747900851408,5.5959709,178.7,178.68,44.79181043]
[1747900851606,5.5959709,178.7,178.67,18.79181043]
[1747900851833,5.5959709,178.7,178.69,44.64964886]
[1747900852709,5.5959709,178.7,178.67,0.14216157]
[1747900852910,5.5959709,178.7,178.63,0.14216157]
[1747900852911,13.92464821,178.68,178.63,0.14216157]
[1747900853116,13.92464821,178.65,178.6,14.06680978]
[1747900853314,13.92464821,178.65,178.6,40.06680978]
[1747900853517,5.59785042,178.64,178.6,40.06680978]
[1747900853710,5.59785042,178.64,178.61,0.14216157]
[1747900854017,13.92464821,178.63,178.59,0.14216157]
[1747900854215,13.92464821,178.62,178.59,0.14216157]
[1747900854728,13.92464821,178.63,178.59,0.14216157]
[1747900854917,13.92464821,178.62,178.59,0.14216157]
[1747900855335,13.92464821,178.63,178.59,0.14216157]
[1747900855632,5.59847721,178.62,178.59,0.14216157]
[1747900855808,19.52312542,178.62,178.59,0.14216157]
[1747900856221,5.59847721,178.62,178.59,0.14216157]
[1747900856447,19.52312542,178.62,178.59,0.14216157]
[1747900857232,1.7702,178.73,178.62,44.79181043]
[1747900857546,19.58370635,178.72,178.62,58.71645864]
[1747900857708,19.58370635,178.72,178.64,0.14216157]
[1747900858031,13.92464821,178.68,178.64,0.14216157]
[1747900858220,47.56042971,178.72,178.64,0.14216157]
[1747900858535,13.92464821,178.68,178.64,0.14216157]
[1747900858941,13.92464821,178.67,178.64,0.14216157]
[1747900859129,19.58370635,178.72,178.63,0.14216157]
[1747900859312,13.92464821,178.69,178.63,14.06680978]
[1747900859735,5.59659726,178.68,178.66,0.14216157]
[1747900860718,13.92464821,178.71,178.66,0.14216157]
[1747900860719,5.59604945,178.7,178.67,0.14216157]
[1747900861230,5.59604945,178.7,178.67,18.79181043]
[1747900861536,5.59409263,178.76,178.7,18.79181043]
[1747900861715,5.59409263,178.76,178.7,26.0]
[1747900861716,5.59565776,178.71,178.7,26.0]
[1747900861920,5.59565776,178.71,178.68,18.64964886]
[1747900862119,5.59565776,178.71,178.69,0.14216157]
[1747900863019,5.59510966,178.73,178.69,14.06680978]
[1747900863212,5.59409263,178.76,178.72,32.71645864]
[1747900863928,33.5020594,178.78,178.72,32.71645864]
[1747900864133,5.59346683,178.78,178.75,0.14216157]
[1747900865927,21.87151063,178.8,178.75,40.66332106]
[1747900866133,21.87151063,178.8,178.75,18.79181043]
[1747900867314,21.87151063,178.8,178.76,0.14216157]
[1747900867931,5.59315397,178.79,178.76,0.14216157]
[1747900869050,21.87151063,178.78,178.71,59.56]
[1747900869404,41.44754954,178.79,178.74,18.79181043]
[1747900870448,21.87151063,178.78,178.74,0.14216157]
[1747900870749,21.87151063,178.77,178.74,0.14216157]
[1747900871225,21.87151063,178.77,178.71,81.43151063]
[1747900871548,21.87151063,178.74,178.7,0.14216157]
[1747900872049,21.87151063,178.73,178.69,0.14216157]
[1747900872237,21.87151063,178.73,178.65,84.8426]
[1747900872238,41.45740878,178.7,178.62,33.56]
[1747900872545,41.45740878,178.7,178.67,0.14216157]
[1747900872546,5.5959709,178.7,178.67,0.14216157]
[1747900872739,5.5959709,178.7,178.68,21.87151063]
[1747900873344,5.5959709,178.7,178.68,0.14216157]
[1747900873525,5.59565776,178.71,178.68,0.14216157]
[1747900874727,5.59565776,178.71,178.62,33.56]
[1747900874728,21.87151063,178.7,178.66,18.79181043]
[1747900874917,19.58480218,178.71,178.66,18.79181043]
[1747900874918,41.45631281,178.71,178.66,18.79181043]
[1747900875124,41.45631281,178.71,178.66,40.66332106]
[1747900875645,19.58480218,178.71,178.66,40.66332106]
[1747900876076,13.98914442,178.71,178.64,0.14216157]
[1747900876231,35.86065505,178.71,178.67,0.14216157]
[1747900876432,21.87151063,178.7,178.67,0.14216157]
[1747900876638,21.87151063,178.68,178.62,0.14216157]
[1747900876822,21.87151063,178.65,178.62,0.14216157]
[1747900877148,21.87151063,178.63,178.59,0.14216157]
[1747900877352,21.87151063,178.62,178.59,0.14216157]
[1747900877536,21.87151063,178.62,178.57,33.56]
[1747900877744,21.87151063,178.58,178.54,8.02809291]
[1747900878051,21.87151063,178.55,178.54,8.02809291]
[1747900879155,21.87151063,178.55,178.5,18.79181043]
[1747900879943,21.87151063,178.54,178.5,18.79181043]
[1747900880168,27.47254942,178.54,178.5,18.79181043]
[1747900880351,5.60058894,178.56,178.5,18.79181043]
[1747900880901,21.87151063,178.59,178.54,21.87151063]
[1747900881062,21.87151063,178.59,178.53,22.0136722]
[1747900881453,27.47092829,178.59,178.53,22.0136722]
[1747900882144,27.47133578,178.58,178.55,0.14216157]
[1747900882662,27.47133578,178.58,178.52,21.87151063]
[1747900882852,21.87151063,178.55,178.5,18.79181043]
[1747900883554,21.87151063,178.53,178.5,0.14216157]
[1747900883755,21.87151063,178.53,178.48,21.87151063]
[1747900883960,21.87151063,178.5,178.46,18.79181043]
[1747900884257,5.60255476,178.49,178.46,18.79181043]
[1747900884451,27.47406539,178.49,178.46,18.79181043]
[1747900885270,21.87151063,178.48,178.45,0.14216157]
[1747900885639,21.87151063,178.48,178.44,18.64964886]
[1747900885640,21.87151063,178.47,178.43,18.79181043]
[1747900885847,21.87151063,178.46,178.43,0.14216157]
[1747900886047,21.87151063,178.46,178.43,26.14216157]
[1747900886376,5.60443871,178.43,178.4,0.14216157]
[1747900886548,27.47594934,178.43,178.4,0.14216157]
[1747900886755,21.87151063,178.41,178.35,21.87151063]
[1747900886965,21.87151063,178.41,178.36,18.79181043]
[1747900887777,21.87151063,178.39,178.34,0.14216157]
[1747900887952,21.87151063,178.4,178.37,0.14216157]
[1747900888154,21.87151063,178.41,178.37,0.14216157]
[1747900888357,5.60538116,178.4,178.37,0.14216157]
[1747900888873,14.01109678,178.43,178.37,0.14216157]
[1747900888874,5.60443871,178.43,178.38,21.87151063]
[1747900889050,5.60443871,178.43,178.39,0.14216157]
[1747900889248,5.60443871,178.43,178.39,22.0136722]
[1747900889878,27.47594934,178.43,178.38,21.87151063]
[1747900890077,21.87151063,178.42,178.39,0.14216157]
[1747900890452,27.47657761,178.41,178.38,0.14216157]
[1747900890669,5.60506698,178.41,178.38,0.14216157]
[1747900891394,21.87151063,178.4,178.35,21.87151063]
[1747900891553,21.87151063,178.39,178.35,0.14216157]
[1747900891755,21.87151063,178.38,178.34,0.14216157]
[1747900891965,5.60506698,178.41,178.34,0.14216157]
[1747900891966,21.87151063,178.37,178.34,0.14216157]
[1747900892169,21.87151063,178.35,178.32,0.14216157]
[1747900892363,21.87151063,178.34,178.29,40.66332106]
[1747900892565,5.60758145,178.33,178.29,40.66332106]
[1747900892874,27.47720601,178.39,178.34,0.14216157]
[1747900893073,27.47720601,178.39,178.34,22.0136722]
[1747900893273,5.60569538,178.39,178.31,0.14216157]
[1747900893462,5.60569538,178.39,178.34,21.87151063]
[1747900893860,5.60569538,178.39,178.35,21.87151063]
[1747900894288,5.60569538,178.39,178.36,22.0136722]
[1747900894582,5.60569538,178.39,178.37,21.87151063]
[1747900894769,5.60569538,178.39,178.36,22.0136722]
[1747900895294,5.60569538,178.39,178.36,21.87151063]
[1747900895791,5.60569538,178.39,178.35,22.0136722]
[1747900896591,19.61919647,178.4,178.35,22.0136722]
[1747900897073,19.61919647,178.4,178.34,0.14216157]
[1747900897280,41.4907071,178.4,178.34,22.0136722]
[1747900897858,41.4907071,178.4,178.34,0.14216157]
[1747900898063,19.61919647,178.4,178.34,0.14216157]
[1747900898290,19.61919647,178.4,178.34,22.0136722]
[1747900898489,41.4907071,178.4,178.34,22.0136722]
[1747900898675,41.4907071,178.4,178.34,0.14216157]
[1747900899070,19.61919647,178.4,178.34,0.14216157]
[1747900899293,41.4907071,178.4,178.34,22.0136722]
[1747900900871,21.87151063,178.39,178.31,0.14216157]
[1747900901070,21.87151063,178.39,178.34,0.14216157]
[1747900901588,21.87151063,178.38,178.33,0.14216157]
[1747900901758,21.87151063,178.36,178.3,21.87151063]
[1747900901976,21.87151063,178.35,178.29,18.64964886]
[1747900902225,21.87151063,178.34,178.29,0.14216157]
[1747900902585,21.87151063,178.32,178.26,0.14216157]
[1747900902785,5.60758145,178.33,178.24,0.14216157]
[1747900902786,21.87151063,178.3,178.24,0.14216157]
[1747900903113,21.87151063,178.25,178.18,40.08]
[1747900903294,21.87151063,178.24,178.19,21.87151063]
[1747900903486,26.0,178.3,178.18,40.08]
[1747900903487,21.87151063,178.3,178.18,40.08]
[1747900903679,21.87151063,178.3,178.25,21.87151063]
[1747900904495,5.60883953,178.29,178.25,21.87151063]
[1747900904877,5.60883953,178.29,178.23,18.79181043]
[1747900905082,5.60883953,178.29,178.25,0.14216157]
[1747900906298,5.60883953,178.29,178.25,22.0136722]
[1747900906495,5.61009817,178.25,178.21,18.79181043]
[1747900906700,21.87151063,178.23,178.19,0.14216157]
[1747900906882,21.87151063,178.23,178.19,18.79181043]
[1747900907282,21.87151063,178.24,178.19,18.79181043]
[1747900907875,21.87151063,178.24,178.19,40.66332106]
[1747900908088,21.87151063,178.24,178.19,18.79181043]
[1747900908285,5.61072771,178.23,178.19,40.66332106]
[1747900908902,14.0217403,178.3,178.22,21.87151063]
[1747900909214,21.87151063,178.29,178.24,21.87151063]
[1747900910498,5.60915413,178.28,178.25,21.87151063]
[1747900910693,5.60915413,178.28,178.24,21.87151063]
[1747900914014,5.60915413,178.28,178.23,47.87151063]
[1747900914207,21.87151063,178.27,178.23,26.0]
[1747900914411,27.48066476,178.28,178.23,47.87151063]
[1747900914606,21.87151063,178.27,178.23,26.0]
[1747900914909,21.87151063,178.26,178.22,26.0]
[1747900915502,21.87151063,178.24,178.19,0.14216157]
[1747900915892,21.87151063,178.24,178.19,22.0136722]
[1747900916097,41.5035501,178.28,178.23,21.87151063]
[1747900916409,41.5035501,178.28,178.22,21.87151063]
[1747900916786,5.60915413,178.28,178.24,21.87151063]
[1747900917009,5.60852495,178.3,178.26,21.87151063]
[1747900917209,5.60852495,178.3,178.24,18.79181043]
[1747900918207,19.6290645,178.31,178.24,18.79181043]
[1747900918397,5.60821042,178.31,178.24,18.79181043]
[1747900920984,5.60758145,178.33,178.28,18.79181043]
[1747900921189,5.60663825,178.36,178.28,18.79181043]
[1747900921426,21.99088483,178.35,178.28,18.79181043]
[1747900921612,21.99088483,178.32,178.25,0.14216157]
[1747900921888,21.99088483,178.3,178.25,0.14216157]
[1747900922315,5.60883953,178.29,178.25,0.14216157]
[1747900922514,5.60883953,178.29,178.23,18.64964886]
[1747900922690,5.60883953,178.29,178.24,0.14216157]
[1747900923393,27.59972436,178.29,178.22,18.64964886]
[1747900923592,41.62182318,178.29,178.23,0.14216157]
[1747900925221,21.99088483,178.28,178.2,45.8254]
[1747900925394,21.99088483,178.28,178.12,4.56355675]
[1747900925714,19.63093835,178.29,178.12,4.56355675]
[1747900925715,21.99088483,178.25,178.14,18.64964886]
[1747900925890,21.99088483,178.26,178.17,18.79181043]
[1747900926521,5.61009817,178.25,178.16,52.43181043]
[1747900926726,27.600983,178.25,178.19,0.14216157]
[1747900927028,19.63534361,178.25,178.18,0.14216157]
[1747900927199,41.62622844,178.25,178.19,26.0]
[1747900927514,41.62622844,178.25,178.18,0.14216157]
[1747900928733,21.99088483,178.2,178.14,18.79181043]
[1747900928904,21.99088483,178.19,178.1,0.14216157]
[1747900929103,1.8156,178.21,178.1,0.14216157]
[1747900929311,21.99088483,178.19,178.1,0.14216157]
[1747900929603,1.8156,178.21,178.09,0.14216157]
[1747900929604,21.99088483,178.2,178.09,0.14216157]
[1747900929820,21.99088483,178.21,178.09,44.79181043]
[1747900930019,21.99088483,178.2,178.09,44.79181043]
[1747900930222,21.99088483,178.18,178.09,18.79181043]
[1747900930405,5.61261716,178.17,178.12,0.14216157]
[1747900931206,5.61261716,178.17,178.11,18.64964886]
[1747900931422,5.61261716,178.17,178.12,0.14216157]
[1747900931807,5.61261716,178.17,178.13,22.02396001]
[1747900932202,26.0,178.15,178.04,7.42303553]
[1747900932426,5.61356236,178.14,178.09,22.02396001]
[1747900932612,5.61356236,178.14,178.05,0.14216157]
[1747900932613,5.61356236,178.14,178.12,22.02396001]
[1747900933045,5.61356236,178.14,178.13,22.02396001]
[1747900933335,5.6119872,178.19,178.13,22.16612158]
[1747900933510,19.64195521,178.19,178.15,22.02396001]
[1747900936338,19.64195521,178.19,178.13,0.14216157]
[1747900936509,19.64195521,178.19,178.15,22.02396001]
[1747900937216,22.02396001,178.18,178.13,22.02396001]
[1747900937622,22.02396001,178.16,178.11,22.02396001]
[1747900938024,22.02396001,178.17,178.12,22.02396001]
[1747900938618,19.64526267,178.16,178.12,22.02396001]
[1747900938917,19.64526267,178.16,178.14,22.02396001]
[1747900940015,5.61293219,178.16,178.15,22.02396001]
[1747900940516,5.61293219,178.16,178.11,18.64964886]
[1747900940517,5.61293219,178.16,178.14,22.02396001]
[1747900940823,19.64242924,178.19,178.14,22.02396001]
[1747900941215,22.02396001,178.18,178.13,22.02396001]
[1747900941809,22.02396001,178.18,178.1,18.79181043]
[1747900942008,22.02396001,178.18,178.12,22.02396001]
[1747900942238,22.02396001,178.17,178.12,22.02396001]
[1747900943126,22.02396001,178.18,178.1,0.14216157]
[1747900943324,22.02396001,178.18,178.12,22.02396001]
[1747900943525,19.64526267,178.16,178.12,22.02396001]
[1747900943743,41.66922268,178.16,178.11,22.02396001]
[1747900944254,41.66922268,178.16,178.1,0.14216157]
[1747900944441,22.02396001,178.15,178.07,18.79181043]
[1747900944631,22.02396001,178.15,178.1,22.02396001]
[1747900945027,19.64526267,178.16,178.13,22.02396001]
[1747900945427,19.64526267,178.16,178.12,22.02396001]
[1747900947261,19.64526267,178.16,178.11,22.02396001]
[1747900947262,41.66922268,178.16,178.11,22.02396001]
[1747900947661,22.02396001,178.15,178.1,22.02396001]
[1747900947875,22.02396001,178.14,178.09,22.02396001]
[1747900948371,22.02396001,178.13,178.08,22.02396001]
[1747900949653,19.64967436,178.12,178.08,22.02396001]
[1747900950474,19.64967436,178.12,178.04,18.79181043]
[1747900950679,19.64967436,178.12,178.08,22.02396001]
[1747900952135,19.64967436,178.12,178.02,81.90417448]
[1747900952341,22.02396001,178.11,178.06,22.02396001]
[1747900952540,47.72063775,178.12,178.06,22.02396001]
[1747900952769,22.02396001,178.11,178.06,22.02396001]
[1747900953687,33.64165262,178.1,178.05,13.98977166]
[1747900954178,19.65188096,178.1,178.05,13.98977166]
[1747900954537,13.98977166,178.09,178.04,13.98977166]
[1747900955574,13.98977166,178.09,178.02,49.68]
[1747900955779,33.6438597,178.08,178.03,13.98977166]
[1747900955980,33.6438597,178.08,178.02,10.0]
[1747900956277,33.6438597,178.08,178.02,23.98977166]
[1747900956278,13.98977166,178.07,178.02,23.98977166]
[1747900957566,13.98977166,178.07,178.02,10.0]
[1747900957775,13.98977166,178.05,178.02,10.0]
[1747900959665,5.61671534,178.04,178.02,10.0]
[1747900961787,13.98977166,178.05,178.02,10.0]
[1747900963189,28.02998282,178.06,178.02,10.0]
[1747900963598,19.65629562,178.06,178.02,23.98977166]
[1747900963767,19.65629562,178.06,178.03,13.98977166]
[1747900964904,5.61608446,178.06,178.04,13.98977166]
[1747900965271,5.61545372,178.08,178.05,13.98977166]
[1747900965474,5.61545372,178.08,178.07,13.98977166]
[1747900965673,14.03844806,178.09,178.07,13.98977166]
[1747900966677,5.61450788,178.11,178.08,13.98977166]
[1747900966873,5.61450788,178.11,178.09,13.98977166]
[1747900967893,19.65016528,178.12,178.09,13.98977166]
[1747900968093,19.65016528,178.12,178.1,13.98977166]
[1747900969807,14.03597261,178.12,178.1,13.98977166]
[1747900971382,28.02574427,178.12,178.06,13.98977166]
[1747900971688,14.03597261,178.12,178.09,13.98977166]
[1747900973794,14.03597261,178.12,178.08,13.98977166]
[1747900973997,19.65016528,178.12,178.08,13.98977166]
[1747900976579,19.65016528,178.12,178.04,33.82216157]
[1747900976781,19.65016528,178.12,178.08,13.98977166]
[1747900977792,19.65016528,178.12,178.09,13.98977166]
[1747900978545,19.65016528,178.12,178.1,13.98977166]
[1747900978712,5.61419267,178.12,178.1,13.98977166]
[1747900978880,19.64695123,178.15,178.1,13.98977166]
[1747900979493,33.63672289,178.15,178.1,13.98977166]
[1747900980109,13.98977166,178.14,178.09,13.98977166]
[1747900980485,19.64695123,178.15,178.09,13.98977166]
[1747900980709,13.98977166,178.14,178.09,13.98977166]
[1747900980891,19.64857126,178.13,178.09,13.98977166]
[1747900981294,19.64857126,178.13,178.05,18.64964886]
[1747900981510,19.64857126,178.13,178.09,13.98977166]
[1747900982094,19.64857126,178.13,178.1,13.98977166]
[1747900982410,19.64857126,178.13,178.09,13.98977166]
[1747900982607,19.64857126,178.13,178.06,0.14216157]
[1747900982799,19.64857126,178.13,178.09,13.98977166]
[1747900983108,19.64857126,178.13,178.1,13.98977166]
[1747900983609,19.64857126,178.13,178.09,13.98977166]
[1747900988921,19.64857126,178.13,178.11,13.98977166]
[1747900989115,19.64857126,178.13,178.07,18.64964886]
[1747900989116,5.6138775,178.13,178.12,13.98977166]
[1747900989699,19.64569648,178.16,178.12,13.98977166]
[1747900990201,13.98977166,178.14,178.09,13.98977166]
[1747900990716,13.98977166,178.15,178.1,13.98977166]
[1747900990898,61.70012911,178.16,178.11,13.98977166]
[1747900991098,47.71035745,178.16,178.11,13.98977166]
[1747900991499,61.70012911,178.16,178.1,13.98977166]
[1747900992423,19.64569648,178.16,178.12,13.98977166]
[1747900993213,19.64569648,178.16,178.14,13.98977166]
[1747900993613,1.7793,178.25,178.15,13.98977166]
[1747900993828,14.02791338,178.22,178.2,13.98977166]
[1747900994033,28.01768504,178.22,178.17,13.98977166]
[1747900994326,13.98977166,178.21,178.15,13.98977166]
[1747900995206,13.98977166,178.2,178.14,13.98977166]
[1747900995931,19.64195521,178.19,178.14,13.98977166]
[1747900996821,13.98977166,178.18,178.12,13.98977166]
[1747900997933,19.64416006,178.17,178.12,6.01447166]
[1747900999013,19.64416006,178.17,178.13,13.98977166]
[1747901002942,61.69701753,178.17,178.12,13.98977166]
[1747901003121,61.69701753,178.17,178.11,13.98977166]
[1747901003634,61.69701753,178.17,178.12,13.98977166]
[1747901005267,47.70724587,178.17,178.12,13.98977166]
[1747901005767,19.64416006,178.17,178.13,13.98977166]
[1747901006153,19.64416006,178.17,178.14,13.98977166]
[1747901006456,19.64416006,178.17,178.15,13.98977166]
[1747901007045,19.64416006,178.17,178.11,0.14216157]
[1747901007360,47.70070996,178.2,178.15,13.98977166]
[1747901008236,47.70070996,178.2,178.09,21.43488278]
[1747901008237,19.64085296,178.2,178.16,13.98977166]
[1747901008363,19.64085296,178.2,178.18,13.98977166]
[1747901008662,19.64085296,178.2,178.15,0.14216157]
[1747901008876,19.64085296,178.2,178.18,13.98977166]
[1747901009173,19.63754698,178.23,178.18,13.98977166]
[1747901009559,19.63754698,178.23,178.19,13.98977166]
[1747901009958,26.0,178.2,178.14,0.14216157]
[1747901010262,13.98977166,178.19,178.12,33.68]
[1747901010458,39.98977166,178.2,178.15,13.98977166]
[1747901010459,26.0,178.2,178.15,13.98977166]
[1747901010655,26.0,178.18,178.15,13.98977166]
[1747901011180,26.0,178.2,178.15,13.98977166]
[1747901011433,26.0,178.18,178.15,13.98977166]
[1747901013165,26.0,178.17,178.15,13.98977166]
[1747901014066,26.0,178.18,178.15,13.98977166]
[1747901014681,26.0,178.18,178.14,13.98977166]
[1747901015880,19.64416006,178.17,178.09,1.8301]
[1747901016127,26.0,178.14,178.12,13.98977166]
[1747901016302,26.0,178.14,178.1,13.98977166]
[1747901016895,26.0,178.14,178.12,13.98977166]
[1747901017074,26.0,178.14,178.13,13.98977166]
[1747901018058,5.61356236,178.14,178.13,13.98977166]
[1747901019979,19.64526267,178.16,178.1,0.14216157]
[1747901020170,19.64526267,178.16,178.12,13.98977166]
[1747901020370,33.63503433,178.16,178.09,0.14216157]
[1747901020587,19.64526267,178.16,178.11,13.98977166]
[1747901020786,19.64526267,178.16,178.09,0.14216157]
[1747901020977,19.64526267,178.16,178.11,13.98977166]
[1747901021167,19.64526267,178.16,178.12,13.98977166]
[1747901021679,19.64526267,178.16,178.14,13.98977166]
[1747901021885,14.03233048,178.16,178.14,13.98977166]
[1747901022176,5.61230216,178.18,178.15,13.98977166]
[1747901022363,5.61230216,178.18,178.16,13.98977166]
[1747901022584,19.64305757,178.18,178.15,13.98977166]
[1747901022764,19.64305757,178.18,178.14,13.98977166]
[1747901023090,19.64305757,178.18,178.15,13.98977166]
[1747901024592,14.03075541,178.18,178.16,13.98977166]
[1747901026898,31.61167227,178.2,178.17,13.98977166]
[1747901027382,45.64085296,178.2,178.17,13.98977166]
[1747901027583,45.64085296,178.2,178.11,52.47181043]
[1747901027755,45.64085296,178.2,178.16,13.98977166]
[1747901028862,19.64085296,178.2,178.16,13.98977166]
[1747901031041,19.64085296,178.2,178.11,78.47181043]
[1747901031242,19.64085296,178.2,178.16,13.98977166]
[1747901032757,19.64085296,178.2,178.18,13.98977166]
[1747901033564,19.64085296,178.2,178.19,13.98977166]
[1747901033782,5.61167227,178.2,178.19,13.98977166]
[1747901034163,14.02735695,178.23,178.19,13.98977166]
[1747901034369,14.02735695,178.23,178.2,13.98977166]
[1747901043571,28.01712861,178.23,178.14,127.79181043]
[1747901043880,28.01712861,178.23,178.18,13.98977166]
[1747901044588,13.98977166,178.2,178.12,1.732]
[1747901044788,13.98977166,178.18,178.13,13.98977166]
[1747901045000,19.63975084,178.21,178.17,13.98977166]
[1747901045773,33.6295225,178.21,178.13,18.79181043]
[1747901045971,33.6295225,178.21,178.16,13.98977166]
[1747901046502,13.98977166,178.19,178.12,1.732]
[1747901046670,19.64305757,178.18,178.14,13.98977166]
[1747901048391,33.63282923,178.18,178.13,13.98977166]
[1747901052178,19.64305757,178.18,178.14,13.98977166]
[1747901052987,33.63282923,178.18,178.13,13.98977166]
[1747901053577,33.63282923,178.18,178.12,0.14216157]
[1747901053771,33.63282923,178.18,178.13,13.98977166]
[1747901055712,13.98977166,178.17,178.11,6.2812]
[1747901055911,13.98977166,178.17,178.12,13.98977166]
[1747901057707,19.64526267,178.16,178.12,13.98977166]
[1747901058815,19.64526267,178.16,178.13,13.98977166]
[1747901060012,14.03233048,178.16,178.13,13.98977166]
[1747901061015,19.64085296,178.2,178.15,13.98977166]
[1747901061217,5.61167227,178.2,178.19,14.13193323]
[1747901061885,5.61167227,178.2,178.19,26.14216157]
[1747901062221,19.63424211,178.26,178.19,40.13193323]
[1747901062720,19.63424211,178.26,178.25,13.98977166]
[1747901063713,28.04870539,178.27,178.24,13.98977166]
[1747901066918,28.04870539,178.27,178.2,26.0]
[1747901067217,28.04870539,178.27,178.23,13.98977166]
[1747901067898,42.03847705,178.27,178.22,13.98977166]
[1747901068615,61.67161778,178.27,178.21,13.98977166]
[1747901068923,61.67161778,178.27,178.18,26.0]
[1747901069222,61.67161778,178.27,178.21,13.98977166]
[1747901069718,47.68184612,178.27,178.21,13.98977166]
[1747901069905,61.67161778,178.27,178.21,13.98977166]
[1747901072636,47.68184612,178.27,178.21,13.98977166]
[1747901072808,61.67161778,178.27,178.21,13.98977166]
[1747901076105,13.98977166,178.26,178.21,13.98977166]
[1747901078526,19.63534361,178.25,178.21,13.98977166]
[1747901078702,19.63534361,178.25,178.18,26.0]
[1747901078703,33.62511527,178.25,178.18,26.0]
[1747901079022,19.63534361,178.25,178.21,13.98977166]